[Event "Top 12 FRA-chT 2017"]
[Site "Chartres"]
[Date "2017.05.19"]
[Round "2"]
[White "Leconte, Maria"]
[Black "Aflalo, Sophie"]
[Result "1-0"]
[ECO "A05"]
[WhiteElo "2174"]
[BlackElo "2135"]
[Annotator "NA"]
[PlyCount "60"]
[EventDate "2017.??.??"]
[EventType "team-tourn"]
[EventCountry "FRA"]
[SourceTitle "playchess.com"]
[Source "ChessBase"]
[SourceQuality "1"]
[WhiteTeam "Saint Quentin"]
[BlackTeam "Tremblay-En-France"]
[TimeControl "40/5400+30:1800+30"]

1. Nf3 {[%emt 0:00:00]} Nf6 {[%emt 0:03:33]} 2. g3 {[%emt 0:00:00]} g6 {[%emt 0:00:16]} 3. Bg2 {[%emt 0:00:05]} Bg7 {[%emt 0:00:08]} 4. O-O {[%emt 0:00:17]} O-O {[%emt 0:00:23]} 5. d4 {[%emt 0:00:11]} d6 {[%emt 0:00:10]} 6. Nc3 {[%emt 0:00:10]} Nbd7 {[%emt 0:00:43]} 7. e4 {[%emt 0:01:56]} c5 {[%emt 0:09:41]} 8. a4 {[%emt 0:00:59]} Rb8 {[%emt 0:07:42]} 9. Re1 {[%emt 0:00:40]} Ne8 {[%emt 0:02:34]} 10. e5 {[%emt 0:36:03]} dxe5 {[%emt 0:15:16]} 11. dxe5 {[%emt 0:00:26]} Nc7 {[%emt 0:00:12]} 12. Nd5 {[%emt 0:17:20]} Ne6 {[%emt 0:02:03]} 13. b3 {[%emt 0:02:04]} c4 {[%emt 0:11:10]} 14. Ba3 {[%emt 0:03:45]} Ndc5 {[%emt 0:05:31]} 15. Nd4 {[%emt 0:01:24]} Re8 {[%emt 0:28:12]} 16. Nxe6 {[%emt 0:00:45]} Nxe6 {[%emt 0:00:03]} 17. Nxe7+ {[%emt 0:01:11]} Kh8 18. Qxd8 {[%emt 0:00:00]} Rxd8 {[%emt 0:03:10]} 19. bxc4 {[%emt 0:08:36]} Bf8 {[%emt 0:02:08]} 20. Bd6 {[%emt 0:00:43]} Bd7 {[%emt 0:04:42]} 21. Red1 {[%emt 0:02:39]} Bxa4 22. Bxb8 {[%emt 0:00:52]} Rxd1+ {[%emt 0:02:32]} 23. Rxd1 {[%emt 0:00:04]} Bxe7 {[%emt 0:00:07]} 24. Ra1 {[%emt 0:02:48]} Bxc2 {[%emt 0:00:43]} 25. Rxa7 {[%emt 0:00:09]} Bc5 {[%emt 0:01:08]} 26. Rxb7 {[%emt 0:00:18]} Kg7 {[%emt 0:00:50]} 27. Bd6 {[%emt 0:00:31]} Bd4 {[%emt 0:00:14]} 28. Bd5 {[%emt 0:01:11]} Ng5 {[%emt 0:00:05]} 29. h4 {[%emt 0:01:23]} Ne4 {[%emt 0:01:07]} 30. Rxf7+ {[%emt 0:00:33]} Kh6 {[%emt 0:00:05]} 1-0

[Event "Top 12 FRA-chT 2017"]
[Site "Chartres"]
[Date "2017.05.19"]
[Round "2"]
[White "Steil-Antoni, Fiona"]
[Black "De Seroux, Camille"]
[Result "1-0"]
[ECO "B22"]
[WhiteElo "2155"]
[BlackElo "2117"]
[Annotator "NA"]
[PlyCount "85"]
[EventDate "2017.??.??"]
[EventType "team-tourn"]
[EventCountry "FRA"]
[SourceTitle "playchess.com"]
[Source "ChessBase"]
[SourceQuality "1"]
[WhiteTeam "Vandoeuvre"]
[BlackTeam "Grasse Echecs"]
[TimeControl "40/5400+30:1800+30"]

1. e4 {[%emt 0:00:00]} c5 {[%emt 0:00:07]} 2. c3 {[%emt 0:00:00]} d6 {[%emt 0:00:12]} 3. Nf3 {[%emt 0:00:53]} Nf6 {[%emt 0:01:06]} 4. Bd3 {[%emt 0:00:47]} Nc6 {[%emt 0:02:25]} 5. h3 {[%emt 0:01:07]} g6 {[%emt 0:01:18]} 6. O-O {[%emt 0:00:32]} Bg7 {[%emt 0:00:09]} 7. Bc2 {[%emt 0:00:27]} O-O {[%emt 0:04:07]} 8. Re1 {[%emt 0:01:10]} e5 {[%emt 0:21:33]} 9. d3 $11 {[%emt 0:06:42] LiveBook: 59 Games} Ne8 {[%emt 0:07:42]} 10. Nbd2 {[%emt 0:07:25]} f5 {[%emt 0:03:14]} 11. exf5 {[%emt 0:03:54]} Bxf5 {[%emt 0:03:56]} 12. Nf1 {[%emt 0:02:49]} Nc7 {[%emt 0:08:12]} 13. Be3 {[%emt 0:04:25]} Kh8 {[%emt 0:02:17]} 14. Ng3 {[%emt 0:02:50]} Nd5 {[%emt 0:09:44]} 15. Nxf5 {[%emt 0:04:12]} Rxf5 {[%emt 0:00:48]} 16. d4 {[%emt 0:03:55]} Nxe3 {[%emt 0:01:23]} 17. fxe3 {[%emt 0:01:28]} Rf8 {[%emt 0:02:57]} 18. d5 {[%emt 0:03:50]} Nb8 {[%emt 0:05:03]} 19. h4 {[%emt 0:04:57]} Bh6 {[%emt 0:06:01]} 20. Qd3 {[%emt 0:05:00]} Nd7 {[%emt 0:07:08]} 21. Rf1 {[%emt 0:03:38]} Nf6 {[%emt 0:02:27]} 22. Ng5 {[%emt 0:06:33]} Bxg5 {[%emt 0:07:02]} 23. hxg5 {[%emt 0:00:02]} Nd7 {[%emt 0:01:39]} 24. Rxf8+ {[%emt 0:03:19]} Qxf8 {[%emt 0:00:16]} 25. Qb5 {[%emt 0:08:04]} Qe7 {[%emt 0:00:54]} 26. Rf1 {[%emt 0:00:49]} Rf8 {[%emt 0:00:38]} 27. Qxb7 {[%emt 0:09:05]} Qxg5 {[%emt 0:00:23]} 28. Rxf8+ {[%emt 0:00:51]} Nxf8 {[%emt 0:00:02]} 29. Kf2 {[%emt 0:01:25]} Qh4+ {[%emt 0:00:53]} 30. Ke2 {[%emt 0:03:25]} Qh5+ {[%emt 0:00:39]} 31. Kd2 {[%emt 0:04:43]} Qg4 {[%emt 0:00:48]} 32. Qf7 {[%emt 0:00:57]} Qxg2+ {[%emt 0:00:52]} 33. Kd3 {[%emt 0:02:38]} e4+ {[%emt 0:00:31]} 34. Kc4 {[%emt 0:00:01]} Qe2+ {[%emt 0:00:23]} 35. Kb3 {[%emt 0:00:02]} Qb5+ {[%emt 0:00:20]} 36. Ka3 {[%emt 0:00:01]} Qa5+ {[%emt 0:00:45]} 37. Ba4 {[%emt 0:00:26]} Qd8 {[%emt 0:00:32]} 38. Be8 {[%emt 0:00:38]} Qa5+ {[%emt 0:00:33]} 39. Kb3 {[%emt 0:00:44]} c4+ {[%emt 0:00:29]} 40. Kc2 {[%emt 0:00:50]} Nd7 {[%emt 0:30:29]} 41. Bxd7 {[%emt 0:30:32]} h5 {[%emt 0:00:00]} 42. Be6 {[%emt 0:00:00]} Qd8 {[%emt 0:00:00]} 43. Qxg6 {[%emt 0:00:00]} 1-0

[Event "Top 12 FRA-chT 2017"]
[Site "Chartres"]
[Date "2017.05.19"]
[Round "2"]
[White "Dacalor, Aurelie"]
[Black "Barbini, Denis"]
[Result "1-0"]
[ECO "D11"]
[WhiteElo "1997"]
[BlackElo "2101"]
[Annotator "NA"]
[PlyCount "92"]
[EventDate "2017.??.??"]
[EventType "team-tourn"]
[EventCountry "FRA"]
[SourceTitle "playchess.com"]
[Source "ChessBase"]
[SourceQuality "1"]
[WhiteTeam "Bois-Colombes"]
[BlackTeam "Lisieux"]
[TimeControl "40/5400+30:1800+30"]

1. d4 {[%emt 0:00:00]} d5 {[%emt 0:00:19]} 2. c4 {[%emt 0:00:00]} c6 {[%emt 0:00:17]} 3. Nf3 {[%emt 0:00:00]} Nf6 {[%emt 0:00:11]} 4. b3 {[%emt 0:04:55]} Bf5 {[%emt 0:07:29]} 5. e3 {[%emt 0:03:01]} e6 {[%emt 0:00:48]} 6. Be2 {[%emt 0:03:23]} h6 {[%emt 0:03:58]} 7. O-O {[%emt 0:00:10]} Nbd7 {[%emt 0:02:38]} 8. Bb2 {[%emt 0:04:03]} Be7 {[%emt 0:04:49]} 9. Nc3 $11 {[%emt 0:00:14]} O-O {[%emt 0:01:06]} 10. h3 {[%emt 0:12:36]} Ne4 {[%emt 0:11:17]} 11. Nd2 {[%emt 0:08:22]} Bd6 {[%emt 0:10:58]} 12. Ndxe4 {[%emt 0:10:51]} dxe4 {[%emt 0:03:39]} 13. Bg4 {[%emt 0:06:34]} Bxg4 {[%emt 0:09:24]} 14. Qxg4 {[%emt 0:00:39]} f5 {[%emt 0:00:20]} 15. Qe2 {[%emt 0:01:30]} Qg5 {[%emt 0:01:22]} 16. Rad1 {[%emt 0:13:40]} Rf6 {[%emt 0:02:57]} 17. f4 {[%emt 0:02:16]} exf3 {[%emt 0:01:55]} 18. Qxf3 {[%emt 0:20:11]} e5 {[%emt 0:09:43]} 19. Ne2 {[%emt 0:00:08]} Rg6 {[%emt 0:12:07]} 20. a3 {[%emt 0:01:19]} Re8 {[%emt 0:01:26]} 21. Bc1 {[%emt 0:01:37]} e4 {[%emt 0:04:56]} 22. Qf2 {[%emt 0:00:05]} c5 {[%emt 0:00:59]} 23. Nf4 {[%emt 0:00:50]} Bxf4 {[%emt 0:00:34]} 24. exf4 {[%emt 0:00:03]} Qe7 {[%emt 0:01:39]} 25. d5 {[%emt 0:01:36]} e3 {[%emt 0:02:57]} 26. Qe2 {[%emt 0:00:01]} Qe4 {[%emt 0:02:38]} 27. Rde1 {[%emt 0:00:41]} Qb1 {[%emt 0:01:12]} 28. Bb2 {[%emt 0:00:34]} Qe4 {[%emt 0:00:54]} 29. Rf3 {[%emt 0:00:18]} Rb6 {[%emt 0:01:05]} 30. Rxe3 {[%emt 0:01:06]} Qxe3+ {[%emt 0:00:11]} 31. Qxe3 {[%emt 0:00:02]} Rxe3 {[%emt 0:00:05]} 32. Rxe3 {[%emt 0:00:06]} Kf7 {[%emt 0:00:19]} 33. Kf2 {[%emt 0:03:39]} g5 {[%emt 0:00:05]} 34. Kf3 {[%emt 0:00:28]} Rg6 {[%emt 0:00:31]} 35. Be5 {[%emt 0:01:03]} g4+ {[%emt 0:01:13]} 36. hxg4 {[%emt 0:00:10]} fxg4+ {[%emt 0:00:54]} 37. Kg3 {[%emt 0:00:52]} Rg8 {[%emt 0:00:40]} 38. Kh4 {[%emt 0:00:36]} Kg6 {[%emt 0:00:25]} 39. Bd6 {[%emt 0:00:29]} Kf5 {[%emt 0:00:58]} 40. Re7 {[%emt 0:00:36]} Nf6 {[%emt 0:30:20]} 41. Rf7 {[%emt 0:30:34]} Kg6 {[%emt 0:00:00]} 42. Rxb7 {[%emt 0:00:00]} Ne4 {[%emt 0:00:00]} 43. Be5 {[%emt 0:00:00]} g3 {[%emt 0:00:00]} 44. Rxa7 {[%emt 0:00:00]} h5 {[%emt 0:00:00]} 45. Ra6+ {[%emt 0:00:00]} Kf5 {[%emt 0:00:00]} 46. Kxh5 {[%emt 0:00:00]} Rb8 {[%emt 0:00:00]} 1-0

[Event "Top 12 FRA-chT 2017"]
[Site "Chartres"]
[Date "2017.05.19"]
[Round "2"]
[White "Guerlin Dit De Guer, Clarisse"]
[Black "Choisy, Mathilde"]
[Result "0-1"]
[ECO "B40"]
[WhiteElo "1278"]
[BlackElo "2153"]
[Annotator "NA"]
[PlyCount "50"]
[EventDate "2017.??.??"]
[EventType "team-tourn"]
[EventCountry "FRA"]
[SourceTitle "playchess.com"]
[Source "ChessBase"]
[SourceQuality "1"]
[WhiteTeam "Montpellier"]
[BlackTeam "Mulhouse Philidor"]
[TimeControl "40/5400+30:1800+30"]

1. e4 {[%emt 0:00:00]} c5 {[%emt 0:00:05]} 2. Nf3 {[%emt 0:00:00]} e6 {[%emt 0:00:07]} 3. d4 {[%emt 0:00:18]} cxd4 {[%emt 0:00:08]} 4. Qxd4 {[%emt 0:00:46]} Nc6 {[%emt 0:00:18]} 5. Qd1 {[%emt 0:02:17]} Nf6 {[%emt 0:01:31]} 6. Nc3 {[%emt 0:00:14]} Qc7 {[%emt 0:02:04]} 7. g3 {[%emt 0:09:18]} Bb4 {[%emt 0:01:38]} 8. Bd2 {[%emt 0:00:19]} a6 {[%emt 0:01:31]} 9. Bg2 {[%emt 0:03:08]} O-O {[%emt 0:00:18]} 10. O-O {[%emt 0:00:09]} Bxc3 {[%emt 0:02:06]} 11. Bxc3 {[%emt 0:04:46]} Nxe4 {[%emt 0:03:46]} 12. Nd4 {[%emt 0:02:14]} (12. Be1 $15) 12... Nxc3 {[%emt 0:01:03]} 13. bxc3 {[%emt 0:05:18]} d5 $17 {[%emt 0:00:21]} (13... Ne7 $19 14. Rb1 d5) 14. Qg4 {[%emt 0:08:34]} Nxd4 {[%emt 0:01:29]} 15. cxd4 {[%emt 0:00:07]} Bd7 {[%emt 0:01:34]} 16. Rac1 {[%emt 0:04:31]} Rac8 {[%emt 0:00:40]} 17. c3 {[%emt 0:03:32]} Bb5 {[%emt 0:04:25]} 18. Rfe1 {[%emt 0:02:18]} Qa5 {[%emt 0:00:41]} 19. Re3 {[%emt 0:13:12]} Qxa2 {[%emt 0:01:40]} 20. Rce1 {[%emt 0:01:38]} Qb2 {[%emt 0:01:44]} 21. f4 {[%emt 0:02:45]} Rxc3 {[%emt 0:01:45]} 22. Qe2 {[%emt 0:08:15]} Bxe2 {[%emt 0:00:12]} 23. R1xe2 {[%emt 0:00:04]} Qc1+ {[%emt 0:00:38]} 24. Kf2 {[%emt 0:00:11]} Rxe3 {[%emt 0:00:10]} 25. Rxe3 {[%emt 0:00:20]} Rc8 {[%emt 0:00:12]} 0-1

[Event "Top 12 FRA-chT 2017"]
[Site "Chartres"]
[Date "2017.05.20"]
[Round "3"]
[White "Maisuradze, Nino"]
[Black "Dacalor, Aurelie"]
[Result "1-0"]
[ECO "A45"]
[WhiteElo "2260"]
[BlackElo "1997"]
[Annotator "NA"]
[PlyCount "167"]
[EventDate "2017.??.??"]
[EventType "team-tourn"]
[EventCountry "FRA"]
[SourceTitle "playchess.com"]
[Source "ChessBase"]
[SourceQuality "1"]
[WhiteTeam "Bischwiller"]
[BlackTeam "Bois-Colombes"]
[TimeControl "40/5400+30:1800+30"]

1. d4 {[%emt 0:02:35]} Nf6 {[%emt 0:00:05]} 2. Nc3 {[%emt 0:01:25]} d5 {[%emt 0:00:42]} 3. Bf4 {[%emt 0:01:04]} e6 {[%emt 0:08:23]} 4. e3 {[%emt 0:01:21]} b6 {[%emt 0:04:27]} 5. a3 Bb7 {[%emt 0:10:07]} 6. Nf3 {[%emt 0:09:07]} Be7 {[%emt 0:04:28]} 7. Bd3 {[%emt 0:04:50]} O-O {[%emt 0:00:47]} 8. Ne5 {[%emt 0:00:44]} c5 {[%emt 0:01:27]} 9. h4 {[%emt 0:08:48]} Nc6 {[%emt 0:05:21]} 10. Nxc6 {[%emt 0:03:03]} Bxc6 {[%emt 0:00:03]} 11. Qf3 {[%emt 0:06:02]} c4 {[%emt 0:10:06]} 12. Bxc4 {[%emt 0:04:05]} b5 {[%emt 0:11:16]} 13. Bd3 {[%emt 0:01:54]} Qb6 {[%emt 0:10:15]} 14. O-O {[%emt 0:03:56]} a5 {[%emt 0:02:14]} 15. Bg5 {[%emt 0:14:55]} h6 {[%emt 0:01:47]} 16. Bxf6 {[%emt 0:01:32]} Bxf6 {[%emt 0:01:33]} 17. h5 {[%emt 0:02:10]} b4 {[%emt 0:05:28]} 18. Ne2 {[%emt 0:02:13]} Bb5 {[%emt 0:08:56]} 19. Nf4 {[%emt 0:04:32]} Rfc8 {[%emt 0:01:21]} 20. Qe2 {[%emt 0:01:20]} Bc6 {[%emt 0:00:48]} 21. Rfb1 {[%emt 0:10:58]} e5 {[%emt 0:02:45]} 22. dxe5 {[%emt 0:00:09]} Bxe5 {[%emt 0:00:04]} 23. Qg4 {[%emt 0:03:19]} d4 {[%emt 0:03:56]} 24. Qf5 {[%emt 0:05:59]} Re8 {[%emt 0:02:57]} 25. Bc4 {[%emt 0:02:02]} Bf6 {[%emt 0:01:01]} 26. Nd5 {[%emt 0:04:20]} Bxd5 {[%emt 0:01:15]} 27. Bxd5 {[%emt 0:00:27]} Re5 {[%emt 0:00:52]} 28. Qf3 {[%emt 0:00:20]} Rd8 {[%emt 0:00:12]} 29. e4 {[%emt 0:00:12]} Qc5 {[%emt 0:01:04]} 30. Qb3 {[%emt 0:00:47]} Re7 {[%emt 0:01:13]} 31. axb4 {[%emt 0:00:10]} Qxb4 {[%emt 0:00:22]} 32. Qxb4 {[%emt 0:00:49]} axb4 {[%emt 0:00:01]} 33. Ra4 {[%emt 0:00:16]} Rc8 {[%emt 0:00:19]} 34. Bb3 {[%emt 0:01:05]} Rxe4 {[%emt 0:00:20]} 35. Rxb4 {[%emt 0:00:10]} Re7 {[%emt 0:01:29]} 36. Ra1 {[%emt 0:00:39]} d3 {[%emt 0:00:30]} 37. cxd3 {[%emt 0:00:20]} Bxb2 {[%emt 0:00:02]} 38. Bxf7+ {[%emt 0:00:21]} Kxf7 {[%emt 0:00:25]} 39. Rxb2 {[%emt 0:00:02]} Rd8 {[%emt 0:00:13]} 40. Rd2 {[%emt 0:01:01]} Re5 {[%emt 0:30:22]} 41. Ra7+ {[%emt 0:02:27]} Kf6 {[%emt 0:00:00]} 42. Ra6+ {[%emt 0:00:45]} Kf7 {[%emt 0:00:00]} 43. Ra7+ {[%emt 0:05:09]} Kf6 {[%emt 0:00:00]} 44. Rb2 {[%emt 0:01:30]} Rd6 {[%emt 0:00:00]} 45. Rbb7 {[%emt 0:03:53]} Rxh5 {[%emt 0:00:00]} 46. Rf7+ {[%emt 0:00:45]} Ke5 {[%emt 0:00:00]} 47. Rxg7 {[%emt 0:12:28]} Rxd3 {[%emt 0:00:00]} 48. Ra5+ {[%emt 0:00:54]} Kf6 {[%emt 0:00:00]} 49. Rxh5 {[%emt 0:00:40]} Kxg7 {[%emt 0:00:00]} 50. Ra5 {[%emt 0:01:04]} Kg6 {[%emt 0:00:00]} 51. Kh2 {[%emt 0:00:49]} Rb3 {[%emt 0:00:03]} 52. g4 {[%emt 0:00:32]} Rb1 {[%emt 0:02:07]} 53. Kg3 {[%emt 0:00:18]} Rb3+ {[%emt 0:01:54]} 54. f3 {[%emt 0:00:03]} Rc3 {[%emt 0:00:28]} 55. Re5 {[%emt 0:00:36]} Kf6 {[%emt 0:00:26]} 56. Rb5 {[%emt 0:04:47]} Ra3 {[%emt 0:00:25]} 57. Rb4 {[%emt 0:01:41]} Kg5 {[%emt 0:00:37]} 58. Rb8 {[%emt 0:00:03]} Kf6 {[%emt 0:00:22]} 59. Rh8 {[%emt 0:01:11]} Kg7 {[%emt 0:00:05]} 60. Rd8 {[%emt 0:00:15]} Kf6 {[%emt 0:00:37]} 61. Kf4 {[%emt 0:00:52]} Ra4+ {[%emt 0:00:37]} 62. Ke3 {[%emt 0:00:09]} Ra1 {[%emt 0:01:38]} 63. f4 {[%emt 0:00:56]} Rg1 {[%emt 0:00:37]} 64. Rd6+ {[%emt 0:00:34]} Kg7 {[%emt 0:00:35]} 65. Kf3 {[%emt 0:00:06]} Rf1+ {[%emt 0:00:00]} 66. Ke4 {[%emt 0:00:12]} Re1+ {[%emt 0:00:27]} 67. Kf5 {[%emt 0:00:19]} Re7 {[%emt 0:01:00]} 68. Rg6+ {[%emt 0:00:08]} Kh7 {[%emt 0:00:11]} 69. g5 {[%emt 0:01:27]} hxg5 {[%emt 0:00:36]} 70. Rxg5 {[%emt 0:00:12]} Re1 {[%emt 0:01:50]} 71. Kf6 {[%emt 0:00:00]} Kh6 {[%emt 0:01:15]} 72. Rg8 {[%emt 0:01:17]} Kh7 {[%emt 0:00:10]} 73. Rg7+ {[%emt 0:00:31]} Kh6 {[%emt 0:01:20]} 74. f5 {[%emt 0:00:38]} Re2 {[%emt 0:00:26]} 75. Re7 {[%emt 0:00:34]} Rf2 {[%emt 0:00:19]} 76. Re5 {[%emt 0:00:26]} Ra2 {[%emt 0:00:50]} 77. Kf7 {[%emt 0:00:29]} Ra7+ {[%emt 0:00:34]} 78. Re7 {[%emt 0:00:04]} Ra1 {[%emt 0:00:27]} 79. f6 {[%emt 0:00:33]} Rb1 {[%emt 0:00:28]} 80. Kf8 {[%emt 0:01:07]} Rb8+ {[%emt 0:00:15]} 81. Re8 {[%emt 0:00:19]} Rb7 {[%emt 0:00:39]} 82. f7 {[%emt 0:00:20]} Kh7 {[%emt 0:00:42]} 83. Re2 {[%emt 0:00:51]} Kg6 {[%emt 0:00:30]} 84. Kg8 {[%emt 0:00:16]} 1-0

[Event "Top 12 FRA-chT 2017"]
[Site "Chartres"]
[Date "2017.05.20"]
[Round "3"]
[White "Dubois, Jean-Marie"]
[Black "Boudiba, Mahfoud"]
[Result "0-1"]
[ECO "D32"]
[WhiteElo "2255"]
[BlackElo "2409"]
[Annotator "NA"]
[PlyCount "134"]
[EventDate "2017.??.??"]
[EventType "team-tourn"]
[EventCountry "FRA"]
[SourceTitle "playchess.com"]
[Source "ChessBase"]
[SourceQuality "1"]
[WhiteTeam "Montpellier"]
[BlackTeam "Tremblay En France"]
[TimeControl "40/5400+30:1800+30"]

1. d4 {[%emt 0:00:00]} d5 {[%emt 0:00:05]} 2. c4 {[%emt 0:00:00]} e6 {[%emt 0:00:09]} 3. Nc3 {[%emt 0:00:00]} c5 {[%emt 0:00:16]} 4. cxd5 {[%emt 0:00:06]} exd5 {[%emt 0:00:08]} 5. Nf3 {[%emt 0:00:13]} Nc6 {[%emt 0:00:08]} 6. dxc5 {[%emt 0:00:28]} d4 {[%emt 0:01:26]} 7. Na4 {[%emt 0:00:27]} Bxc5 {[%emt 0:06:21]} 8. Nxc5 {[%emt 0:00:13]} Qa5+ {[%emt 0:00:03]} 9. Bd2 {[%emt 0:01:02]} Qxc5 {[%emt 0:00:07]} 10. Rc1 {[%emt 0:02:35]} Qd6 {[%emt 0:03:16]} 11. e3 {[%emt 0:10:28]} dxe3 {[%emt 0:15:29]} 12. Bxe3 {[%emt 0:00:54]} Qxd1+ {[%emt 0:02:11]} 13. Rxd1 {[%emt 0:00:19]} Be6 {[%emt 0:00:05]} 14. Bb5 {[%emt 0:09:10]} Nge7 {[%emt 0:06:51]} 15. Bc5 {[%emt 0:21:39]} a6 {[%emt 0:13:45]} 16. Bxc6+ {[%emt 0:05:13]} Nxc6 {[%emt 0:00:28]} 17. Ng5 {[%emt 0:04:01]} Rd8 {[%emt 0:08:25]} 18. O-O {[%emt 0:10:14]} Rxd1 {[%emt 0:10:06]} 19. Rxd1 {[%emt 0:00:16]} Bxa2 {[%emt 0:00:29]} 20. Ne4 {[%emt 0:01:30]} h5 {[%emt 0:00:18]} 21. Nd6+ {[%emt 0:03:10]} Kf8 {[%emt 0:00:19]} 22. Nxb7+ {[%emt 0:03:24]} Kg8 {[%emt 0:00:06]} 23. Rd6 {[%emt 0:01:27]} Rh6 {[%emt 0:00:32]} 24. Rxh6 {[%emt 0:05:49]} gxh6 {[%emt 0:00:03]} 25. f4 {[%emt 0:01:38]} Kg7 {[%emt 0:00:31]} 26. Kf2 {[%emt 0:03:37]} Bd5 {[%emt 0:02:03]} 27. Nd6 {[%emt 0:01:41]} Kg6 {[%emt 0:03:30]} 28. g3 {[%emt 0:06:53]} Kf6 {[%emt 0:01:02]} 29. Ke3 {[%emt 0:01:19]} Ke6 {[%emt 0:00:56]} 30. b4 {[%emt 0:05:42]} Ne7 {[%emt 0:01:09]} 31. Kd3 {[%emt 0:01:02]} Bc6 {[%emt 0:01:53]} 32. h3 {[%emt 0:00:54]} Bg2 {[%emt 0:01:30]} 33. g4 {[%emt 0:00:24]} Bxh3 {[%emt 0:01:12]} 34. f5+ {[%emt 0:00:19]} Kd7 {[%emt 0:05:21]} 35. Nxf7 {[%emt 0:00:08]} Bxg4 {[%emt 0:02:01]} 36. Ne5+ {[%emt 0:00:24]} Kd8 {[%emt 0:01:33]} 37. f6 {[%emt 0:00:17]} Ng6 {[%emt 0:00:08]} 38. Nf7+ {[%emt 0:01:25]} Ke8 {[%emt 0:00:49]} 39. Nxh6 {[%emt 0:00:15]} Be6 {[%emt 0:00:05]} 40. Ke4 {[%emt 0:00:51]} h4 {[%emt 0:31:10]} 41. Nf5 {[%emt 0:30:31]} Kf7 {[%emt 0:06:22]} 42. Bd4 {[%emt 0:00:00]} Bd7 {[%emt 0:00:00]} 43. Nh6+ {[%emt 0:00:00]} Ke6 {[%emt 0:00:00]} 44. Kf3 {[%emt 0:00:00]} Kd5 {[%emt 0:00:00]} 45. Bc5 {[%emt 0:00:00]} Be6 {[%emt 0:00:00]} 46. Ng4 {[%emt 0:00:42]} a5 {[%emt 0:00:00]} 47. Ne3+ {[%emt 0:01:17]} Kc6 {[%emt 0:00:00]} 48. Nc2 {[%emt 0:00:30]} Bf7 {[%emt 0:00:00]} 49. Bd4 {[%emt 0:00:48]} Bb3 {[%emt 0:00:00]} 50. Na1 {[%emt 0:00:28]} Bd5+ {[%emt 0:00:00]} 51. Kg4 {[%emt 0:00:33]} axb4 {[%emt 0:00:00]} 52. Nc2 {[%emt 0:00:45]} Kb5 {[%emt 0:00:00]} 53. Nxb4 {[%emt 0:00:37]} Kxb4 {[%emt 0:00:00]} 54. Kf5 {[%emt 0:00:26]} h3 {[%emt 0:00:00]} 55. Bg1 {[%emt 0:00:23]} Nh8 {[%emt 0:00:00]} 56. Bh2 {[%emt 0:00:52]} Nf7 {[%emt 0:00:00]} 57. Kg4 {[%emt 0:00:34]} Be6+ {[%emt 0:00:00]} 58. Kh5 {[%emt 0:00:05]} Bf5 {[%emt 0:00:00]} 59. Kh4 {[%emt 0:00:44]} Kc4 {[%emt 0:00:00]} 60. Kg3 {[%emt 0:00:09]} Kd3 {[%emt 0:00:00]} 61. Bg1 {[%emt 0:00:48]} Ke2 {[%emt 0:00:00]} 62. Ba7 {[%emt 0:00:28]} Be6 {[%emt 0:00:00]} 63. Bd4 {[%emt 0:00:36]} Ng5 {[%emt 0:00:00]} 64. Bb6 {[%emt 0:00:40]} Ne4+ {[%emt 0:00:00]} 65. Kh2 {[%emt 0:00:34]} Nd2 {[%emt 0:00:00]} 66. f7 {[%emt 0:00:24]} Nf1+ {[%emt 0:00:00]} 67. Kg1 {[%emt 0:00:19]} h2+ {[%emt 0:00:00]} 0-1

[Event "Top 12 FRA-chT 2017"]
[Site "Chartres"]
[Date "2017.05.20"]
[Round "3"]
[White "Bollengier, Andreea"]
[Black "Steil-Antoni, Fiona"]
[Result "1-0"]
[ECO "A20"]
[WhiteElo "2234"]
[BlackElo "2155"]
[Annotator "NA"]
[PlyCount "111"]
[EventDate "2017.??.??"]
[EventType "team-tourn"]
[EventCountry "FRA"]
[SourceTitle "playchess.com"]
[Source "ChessBase"]
[SourceQuality "1"]
[WhiteTeam "Nice Alekhine"]
[BlackTeam "Vandoeuvre"]
[TimeControl "40/5400+30:1800+30"]

1. c4 e5 {[%emt 0:02:43]} 2. g3 {[%emt 0:00:00]} Nc6 {[%emt 0:00:11]} 3. Bg2 {[%emt 0:00:00]} Bc5 {[%emt 0:00:14]} 4. Nc3 {[%emt 0:00:37]} a6 {[%emt 0:00:05]} 5. e3 {[%emt 0:00:58]} d6 {[%emt 0:01:15]} 6. Nge2 {[%emt 0:00:56]} Ba7 {[%emt 0:00:07]} 7. d4 {[%emt 0:08:42]} h5 {[%emt 0:01:07]} 8. h4 {[%emt 0:08:04]} Bd7 {[%emt 0:10:24]} 9. b3 {[%emt 0:04:27]} f5 {[%emt 0:08:21]} 10. dxe5 {[%emt 0:16:32]} dxe5 {[%emt 0:01:57]} 11. Nd5 {[%emt 0:03:25]} Nf6 {[%emt 0:05:01]} 12. Ba3 {[%emt 0:04:18]} Rb8 {[%emt 0:18:20]} 13. Nec3 {[%emt 0:05:56]} b5 {[%emt 0:07:05]} 14. Nxf6+ {[%emt 0:02:05]} gxf6 {[%emt 0:09:12]} 15. cxb5 {[%emt 0:02:02]} axb5 {[%emt 0:00:28]} 16. Nd5 {[%emt 0:02:54]} b4 {[%emt 0:03:37]} 17. Bb2 {[%emt 0:00:08]} Kf7 {[%emt 0:00:58]} 18. Rc1 {[%emt 0:03:37]} Be8 {[%emt 0:11:17]} 19. Qc2 {[%emt 0:09:17]} Rb5 {[%emt 0:01:12]} 20. Rd1 {[%emt 0:03:36]} Qc8 {[%emt 0:02:43]} 21. Bh3 {[%emt 0:03:50]} Rc5 {[%emt 0:06:04]} 22. Qd2 {[%emt 0:05:29]} Nd4 {[%emt 0:02:33]} 23. exd4 {[%emt 0:00:54]} Rxd5 {[%emt 0:00:02]} 24. Qxb4 {[%emt 0:00:56]} exd4 {[%emt 0:01:00]} 25. O-O {[%emt 0:00:21]} Qd8 {[%emt 0:04:12]} 26. Bg2 {[%emt 0:04:00]} Rd6 {[%emt 0:01:12]} 27. Qa5 {[%emt 0:00:13]} Bb6 {[%emt 0:00:31]} 28. Qxf5 {[%emt 0:00:05]} Bd7 {[%emt 0:00:35]} 29. Qf4 {[%emt 0:03:02]} Bg4 {[%emt 0:00:32]} 30. Bf3 {[%emt 0:00:21]} Rg8 {[%emt 0:01:09]} 31. Rd3 {[%emt 0:00:56]} Qd7 {[%emt 0:00:31]} 32. b4 {[%emt 0:03:46]} Bxf3 {[%emt 0:00:24]} 33. Qxf3 {[%emt 0:00:31]} Rg4 {[%emt 0:00:01]} 34. Re1 {[%emt 0:01:14]} Re6 {[%emt 0:00:25]} 35. Rxe6 {[%emt 0:00:53]} Qxe6 {[%emt 0:00:02]} 36. a4 {[%emt 0:00:39]} Qe1+ {[%emt 0:00:17]} 37. Kg2 {[%emt 0:00:41]} Qxb4 {[%emt 0:00:18]} 38. Qd5+ {[%emt 0:00:46]} Kg7 {[%emt 0:01:16]} 39. Qxh5 {[%emt 0:02:00]} Rg6 {[%emt 0:00:01]} 40. Qb5 {[%emt 0:00:50]} Qe7 {[%emt 0:31:30]} 41. Qd5 {[%emt 0:30:40]} c5 {[%emt 0:01:16]} 42. Rb3 {[%emt 0:00:00]} f5 {[%emt 0:00:00]} 43. a5 {[%emt 0:00:00]} Bxa5 {[%emt 0:00:00]} 44. Rb7 {[%emt 0:00:00]} Bc7 {[%emt 0:00:00]} 45. Qxf5 {[%emt 0:00:00]} Rf6 {[%emt 0:00:00]} 46. Qg5+ {[%emt 0:00:00]} Kh7 {[%emt 0:00:00]} 47. Qh5+ {[%emt 0:00:00]} Kg7 {[%emt 0:00:00]} 48. Qg4+ {[%emt 0:00:00]} Kf7 {[%emt 0:00:00]} 49. Bc1 {[%emt 0:00:00]} Qd8 {[%emt 0:00:00]} 50. Qh5+ {[%emt 0:00:00]} Kg8 {[%emt 0:00:00]} 51. Qxc5 {[%emt 0:00:00]} Rf7 {[%emt 0:00:00]} 52. Qg5+ {[%emt 0:01:12]} Qxg5 {[%emt 0:00:00]} 53. Bxg5 {[%emt 0:00:00]} d3 {[%emt 0:00:00]} 54. Kf1 {[%emt 0:01:50]} Rd7 {[%emt 0:00:00]} 55. Bf4 {[%emt 0:00:33]} d2 {[%emt 0:00:00]} 56. Bxd2 {[%emt 0:00:01]} 1-0